lending/lending_fUSD_20250516
["ID","MTS","AMOUNT","RATE_DAILY","PERIOD"]
[361304494,1747438263785,-400.0,0.00016986,2]
[361304495,1747438263796,-400.0,0.00016986,2]
[361304496,1747438263806,-400.0,0.00016986,2]
[361304497,1747438263815,-400.0,0.00016986,2]
[361304498,1747438263824,-400.0,0.00016986,2]
[361304499,1747438263834,-400.0,0.00016986,2]
[361304500,1747438263843,-400.0,0.00016986,2]
[361304501,1747438263853,-400.0,0.00016986,2]
[361304502,1747438263862,-665.83,0.00016986,2]
[361304503,1747438263872,-400.0,0.00016986,2]
[361304504,1747438263882,-400.0,0.00016986,2]
[361304505,1747438263891,-400.0,0.00016986,2]
[361304506,1747438263900,-444.57,0.00016986,2]
[361304507,1747438263909,-646.63,0.00016986,2]
[361304508,1747438263918,-1589.04,0.00016986,2]
[361304509,1747438263928,-663.64,0.00016986,2]
[361304510,1747438263937,-796.13,0.00016986,2]
[361304511,1747438263947,-400.0,0.00016986,2]
[361304512,1747438263956,-151.0,0.00016986,2]
[361304513,1747438263965,-151.0,0.00016986,2]
[361304514,1747438263974,-151.0,0.00016986,2]
[361304515,1747438263983,-1000.0,0.00016986,2]
[361304516,1747438263992,-638.95,0.00016986,2]
[361304517,1747438264001,-400.0,0.00016986,2]
[361304518,1747438264313,-400.0,0.00016986,2]
[361304519,1747438264323,-660.73,0.00016986,2]
[361304520,1747438264332,-1020.72,0.00016986,2]
[361304521,1747438264342,-532.1,0.00016986,2]
[361304522,1747438264352,-400.0,0.00016986,2]
[361304523,1747438264362,-510.6,0.00016986,2]
[361304524,1747438264371,-230.54267,0.00016986,2]
[361304525,1747438264381,-400.0,0.00016986,2]
[361304526,1747438264390,-477.87,0.00016986,2]
[361304527,1747438264399,-400.0,0.00016986,2]
[361304528,1747438264409,-629.6,0.00016986,2]
[361304529,1747438264418,-400.0,0.00016986,2]
[361304530,1747438264427,-480.26,0.00016986,2]
[361304531,1747438264437,-1008.29,0.00016986,2]
[361304532,1747438264446,-400.0,0.00016986,2]
[361304533,1747438264455,-228.46093629,0.00016986,2]
[361304534,1747438264465,-836.28,0.00016986,2]
[361304535,1747438264475,-920.6,0.00016986,2]
[361304536,1747438264485,-1630.69,0.00016986,2]
[361304537,1747438264494,-653.0,0.00016986,2]
[361304538,1747438264504,-400.0,0.00016986,2]
[361304539,1747438264513,-151.0,0.00016986,2]
[361304540,1747438264522,-785.01,0.00016986,2]
[361304541,1747438264532,-400.0,0.00016986,2]
[361304542,1747438264541,-806.2,0.00016986,2]
[361304543,1747438264550,-676.25,0.00016986,2]
[361304544,1747438264559,-699.05,0.00016986,2]
[361304545,1747438264569,-151.0,0.00016986,2]
[361304546,1747438264578,-567.81,0.00016986,2]
[361304547,1747438264587,-828.75,0.00016986,2]
[361304548,1747438264597,-801.19,0.00016986,2]
[361304549,1747438264606,-400.0,0.00016986,2]
[361304550,1747438264616,-570.33,0.00016986,2]
[361304551,1747438264625,-400.0,0.00016986,2]
[361304552,1747438264634,-706.47,0.00016986,2]
[361304553,1747438264644,-619.57,0.00016986,2]
[361304554,1747438264653,-1216.15,0.00016986,2]
[361304555,1747438264664,-873.23,0.00016986,2]
[361304556,1747438264673,-400.0,0.00016986,2]
[361304557,1747438264682,-400.0,0.00016986,2]
[361304558,1747438264692,-1207.23,0.00016986,2]
[361304559,1747438264702,-151.0,0.00016986,2]
[361304560,1747438264711,-151.0,0.00016986,2]
[361304561,1747438264723,-151.0,0.00016986,2]
[361304562,1747438264733,-151.0,0.00016986,2]
[361304563,1747438264742,-450.0,0.00016986,2]
[361304564,1747438264752,-658.75,0.00016986,2]
[361304565,1747438264761,-585.86,0.00016986,2]
[361304566,1747438264771,-151.0,0.00016986,2]
[361304567,1747438264780,-151.0,0.00016986,2]
[361304568,1747438264790,-400.0,0.00016986,2]
[361304569,1747438264801,-151.0,0.00016986,2]
[361304570,1747438264811,-400.0,0.00016986,2]
[361304571,1747438264820,-671.06,0.00016986,2]
[361304572,1747438264829,-400.0,0.00016986,2]
[361304573,1747438264839,-470.01,0.00016986,2]
[361304574,1747438264849,-670.62,0.00016986,2]
[361304575,1747438264858,-573.07,0.00016986,2]
[361304576,1747438264868,-966.33,0.00016986,2]
[361304577,1747438264877,-518.4,0.00016986,2]
[361304578,1747438264887,-1029.57,0.00016986,2]
[361304579,1747438264897,-739.61,0.00016986,2]
[361304580,1747438264906,-573.96,0.00016986,2]
[361304581,1747438264916,-400.0,0.00016986,2]
[361304582,1747438264925,-400.0,0.00016986,2]
[361304583,1747438264934,-400.0,0.00016986,2]
[361304584,1747438264944,-839.29,0.00016986,2]
[361304585,1747438264954,-617.59,0.00016986,2]
[361304586,1747438264965,-400.0,0.00016986,2]
[361304587,1747438264975,-400.0,0.00016986,2]
[361304588,1747438264984,-400.0,0.00016986,2]
[361304589,1747438264994,-400.0,0.00016986,2]
[361304590,1747438265003,-400.0,0.00016986,2]
[361304591,1747438265012,-818.09,0.00016986,2]
[361304592,1747438265022,-400.0,0.00016986,2]
[361304593,1747438265031,-478.24,0.00016986,2]
[361304594,1747438265041,-400.0,0.00016986,2]
[361304595,1747438265050,-1180.87,0.00016986,2]
[361304596,1747438265060,-400.0,0.00016986,2]
[361304597,1747438265069,-619.41,0.00016986,2]
[361304598,1747438265079,-905.72,0.00016986,2]
[361304599,1747438265089,-151.0,0.00016986,2]
[361304600,1747438265098,-400.0,0.00016986,2]
[361304601,1747438265108,-400.0,0.00016986,2]
[361304602,1747438265117,-550.38,0.00016986,2]
[361304603,1747438265127,-813.04,0.00016986,2]
[361304604,1747438265137,-400.0,0.00016986,2]
[361304605,1747438265146,-400.0,0.00016986,2]
[361304606,1747438265155,-210.0,0.00016986,2]
[361304607,1747438265165,-210.0,0.00016986,2]
[361304608,1747438265174,-210.0,0.00016986,2]
[361304609,1747438265184,-210.0,0.00016986,2]
[361304610,1747438265193,-210.0,0.00016986,2]
[361304611,1747438265202,-1175.02,0.00016986,2]
[361304612,1747438265212,-210.0,0.00016986,2]
[361304613,1747438265221,-210.0,0.00016986,2]
[361304614,1747438265230,-418.49,0.00016986,2]
[361304615,1747438265239,-450.0,0.00016986,2]
[361304616,1747438265248,-400.0,0.00016986,2]
[361304617,1747438265258,-500.41,0.00016986,2]
[361304618,1747438265267,-400.0,0.00016986,2]
[361304619,1747438265276,-546.0,0.00016986,2]
[361304620,1747438265286,-1192.64,0.00016986,2]
[361304621,1747438265295,-400.0,0.00016986,2]
[361304622,1747438265304,-546.0,0.00016986,2]
[361304623,1747438265314,-546.0,0.00016986,2]
[361304624,1747438265323,-546.0,0.00016986,2]
[361304625,1747438265332,-546.0,0.00016986,2]
[361304626,1747438265343,-401.23,0.00016986,2]
[361304627,1747438265353,-546.0,0.00016986,2]
[361304628,1747438265362,-478.62,0.00016986,2]
[361304629,1747438265372,-546.0,0.00016986,2]
[361304630,1747438265381,-400.0,0.00016986,2]
[361304631,1747438265390,-546.0,0.00016986,2]
[361304632,1747438265400,-546.0,0.00016986,2]
[361304633,1747438265409,-546.0,0.00016986,2]
[361304634,1747438265418,-546.0,0.00016986,2]
[361304635,1747438265427,-546.0,0.00016986,2]
[361304636,1747438265437,-546.0,0.00016986,2]
[361304637,1747438265446,-439.05,0.00016986,2]
[361304638,1747438265456,-546.0,0.00016986,2]
[361304639,1747438265465,-546.0,0.00016986,2]
[361304640,1747438265475,-400.0,0.00016986,2]
[361304641,1747438265484,-546.0,0.00016986,2]
[361304642,1747438265494,-400.0,0.00016986,2]
[361304643,1747438265504,-546.0,0.00016986,2]
[361304644,1747438265513,-400.0,0.00016986,2]
[361304645,1747438265522,-546.0,0.00016986,2]
[361304646,1747438265532,-546.0,0.00016986,2]
[361304647,1747438265542,-546.0,0.00016986,2]
[361304648,1747438265552,-442.94,0.00016986,2]
[361304649,1747438265561,-400.0,0.00016986,2]
[361304650,1747438265571,-407.84,0.00016986,2]
[361304651,1747438265581,-400.0,0.00016986,2]
[361304652,1747438265590,-661.14,0.00016986,2]
[361304653,1747438265600,-1118.1,0.00016986,2]
[361304654,1747438265609,-676.73,0.00016986,2]
[361304655,1747438265618,-707.22,0.00016986,2]
[361304656,1747438265630,-731.33,0.00016986,2]
[361304657,1747438265639,-574.45,0.00016986,2]
[361304658,1747438265649,-749.270356,0.00016986,2]
[361304659,1747438265658,-749.270356,0.00016986,2]
[361304660,1747438265667,-887.91,0.00016986,2]
[361304661,1747438265677,-400.0,0.00016986,2]
[361304662,1747438265686,-935.86,0.00016986,2]
[361304663,1747438265696,-531.22,0.00016986,2]
[361304664,1747438265706,-749.270356,0.00016986,2]
[361304665,1747438265716,-1272.9,0.00016986,2]
[361304666,1747438265734,-749.270356,0.00016986,2]
[361304667,1747438265743,-1349.62,0.00016986,2]
[361304668,1747438265753,-445.29,0.00016986,2]
[361304669,1747438265763,-454.12,0.00016986,2]
[361304670,1747438265774,-441.12,0.00016986,2]
[361304671,1747438265784,-666.43,0.00016986,2]
[361304672,1747438265793,-400.0,0.00016986,2]
[361304673,1747438265802,-400.0,0.00016986,2]
[361304674,1747438265811,-400.0,0.00016986,2]
[361304675,1747438265820,-151.0,0.00016986,2]
[361304676,1747438265829,-504.76,0.00016986,2]
[361304677,1747438265839,-400.0,0.00016986,2]
[361304678,1747438265848,-400.0,0.00016986,2]
[361304679,1747438265857,-484.54,0.00016986,2]
[361304680,1747438265866,-690.65,0.00016986,2]
[361304681,1747438265875,-400.0,0.00016986,2]
[361304682,1747438265885,-1207.78,0.00016986,2]
[361304683,1747438265894,-2486.42,0.00016986,2]
[361304684,1747438265903,-580.29,0.00016986,2]
[361304685,1747438265912,-1569.94,0.00016986,2]
[361304686,1747438265920,-400.0,0.00016986,2]
[361304687,1747438265930,-471.72,0.00016986,2]
[361304688,1747438265939,-400.0,0.00016986,2]
[361304689,1747438265947,-400.0,0.00016986,2]
[361304690,1747438265956,-1988.22,0.00016986,2]
[361304691,1747438265965,-400.0,0.00016986,2]
[361304692,1747438265974,-1026.86,0.00016986,2]
[361304693,1747438265983,-400.0,0.00016986,2]
[361304694,1747438265993,-400.0,0.00016986,2]
[361304695,1747438266002,-400.0,0.00016986,2]
[361304696,1747438266011,-716.97,0.00016986,2]
[361304697,1747438266020,-452.7,0.00016986,2]
[361304698,1747438266029,-1223.83,0.00016986,2]
[361304699,1747438266038,-414.83,0.00016986,2]
[361304700,1747438266047,-400.0,0.00016986,2]
[361304701,1747438266056,-400.0,0.00016986,2]
[361304702,1747438266065,-400.0,0.00016986,2]
[361304703,1747438266073,-709.88,0.00016986,2]
[361304704,1747438266082,-400.0,0.00016986,2]
[361304705,1747438266092,-445.69,0.00016986,2]
[361304706,1747438266104,-645.68,0.00016986,2]
[361304707,1747438266114,-464.14,0.00016986,2]
[361304708,1747438266124,-913.1,0.00016986,2]
[361304709,1747438266133,-552.34,0.00016986,2]
[361304710,1747438266143,-400.0,0.00016986,2]
[361304711,1747438266153,-1177.25,0.00016986,2]
[361304712,1747438266162,-1021.16,0.00016986,2]
[361304713,1747438266171,-400.0,0.00016986,2]
[361304714,1747438266181,-1338.58,0.00016986,2]
[361304715,1747438266190,-1338.25,0.00016986,2]
[361304716,1747438266199,-636.17,0.00016986,2]
[361304717,1747438266208,-875.17,0.00016986,2]
[361304718,1747438266217,-573.03,0.00016986,2]
[361304719,1747438266226,-453.09,0.00016986,2]
[361304720,1747438266235,-400.0,0.00016986,2]
[361304721,1747438266244,-556.29,0.00016986,2]
[361304722,1747438266253,-400.0,0.00016986,2]
[361304723,1747438266262,-620.81,0.00016986,2]
[361304724,1747438266271,-824.82,0.00016986,2]
[361304725,1747438266280,-4552.217634,0.00016986,2]
[361304726,1747438266289,-527.49,0.00016986,2]
[361304727,1747438266298,-783.99,0.00016986,2]
[361304728,1747438266307,-400.0,0.00016986,2]
[361304729,1747438266316,-1316.45,0.00016986,2]
[361304730,1747438266326,-874.13,0.00016986,2]
[361304731,1747438266335,-559.89,0.00016986,2]
[361304732,1747438266345,-421.04,0.00016986,2]
[361304733,1747438266356,-721.48,0.00016986,2]
[361304734,1747438266365,-800.79,0.00016986,2]
[361304735,1747438266375,-400.0,0.00016986,2]
[361304736,1747438266385,-1063.44,0.00016986,2]
[361304737,1747438266395,-151.0,0.00016986,2]
[361304738,1747438266404,-592.96,0.00016986,2]
[361304739,1747438266413,-400.0,0.00016986,2]
[361304740,1747438266423,-803.08,0.00016986,2]
[361304741,1747438266432,-400.0,0.00016986,2]
[361304742,1747438266441,-400.0,0.00016986,2]
[361304743,1747438266451,-400.0,0.00016986,2]
[361304744,1747438266460,-400.0,0.00016986,2]
[361304745,1747438266470,-441.66,0.00016986,2]
[361304746,1747438266479,-400.0,0.00016986,2]
[361304747,1747438266489,-400.0,0.00016986,2]
[361304748,1747438266499,-400.0,0.00016986,2]
[361304749,1747438266509,-400.0,0.00016986,2]
[361304750,1747438266518,-400.0,0.00016986,2]
[361304751,1747438266529,-400.0,0.00016986,2]
[361304752,1747438266539,-395.34457749,0.00016986,2]
[361304753,1747438266548,-421.67,0.00016986,2]
[361304754,1747438266557,-400.0,0.00016986,2]
[361304755,1747438266566,-426.27,0.00016986,2]
[361304756,1747438266575,-1126.08,0.00016986,2]
[361304757,1747438266585,-400.0,0.00016986,2]
[361304758,1747438266594,-466.97,0.00016986,2]
[361304759,1747438266604,-518.65,0.00016986,2]
[361304760,1747438266613,-415.54,0.00016986,2]
[361304761,1747438266710,-827.63,0.00016986,2]
[361304762,1747438266722,-400.0,0.00016986,2]
[361304763,1747438266731,-863.69,0.00016986,2]
[361304764,1747438266740,-511.36,0.00016986,2]
[361304765,1747438266749,-466.11,0.00016986,2]
[361304766,1747438266759,-400.0,0.00016986,2]
[361304767,1747438266769,-1043.86,0.00016986,2]
[361304768,1747438266778,-439.86,0.00016986,2]
[361304769,1747438266787,-619.33,0.00016986,2]
[361304770,1747438266798,-400.0,0.00016986,2]
[361304771,1747438266807,-10173.34,0.00016986,2]
[361304772,1747438266816,-400.0,0.00016986,2]
[361304773,1747438266825,-579.17,0.00016986,2]
[361304774,1747438266834,-805.82,0.00016986,2]
[361304775,1747438266843,-2917.44,0.00016986,2]
[361304776,1747438266852,-205.727068,0.00016986,2]
[361304777,1747438266862,-946.87,0.00016986,2]
[361304778,1747438266871,-928.05,0.00016986,2]
[361304779,1747438266880,-21937.59,0.00016986,2]
[361304780,1747438266889,-522.56,0.00016986,2]
[361304781,1747438266898,-2619.54,0.00016986,2]
[361304782,1747438266907,-516.34,0.00016986,2]
[361304783,1747438266916,-726.37,0.00016986,2]
[361304784,1747438266925,-1220.57,0.00016986,2]
[361304785,1747438266934,-513.29,0.00016986,2]
[361304786,1747438266943,-644.99,0.00016986,2]
[361304787,1747438266952,-151.0,0.00016986,2]
[361304788,1747438266961,-1760.61,0.00016986,2]
[361304789,1747438266970,-151.0,0.00016986,2]
[361304790,1747438266979,-1055.13,0.00016986,2]
[361304791,1747438266987,-666.55,0.00016986,2]
[361304792,1747438266997,-1591.84,0.00016986,2]
[361304793,1747438267006,-2007.2,0.00016986,2]
[361304794,1747438267015,-908.48,0.00016986,2]
[361304795,1747438267024,-717.09,0.00016986,2]
[361304796,1747438267033,-400.0,0.00016986,2]
[361304797,1747438267042,-1301.22,0.00016986,2]
[361304798,1747438267050,-598.77,0.00016986,2]
[361304799,1747438267059,-400.0,0.00016986,2]
[361304800,1747438267068,-487.96,0.00016986,2]
[361304801,1747438267076,-637.79,0.00016986,2]
[361304802,1747438267085,-769.79,0.00016986,2]
[361304803,1747438267094,-1165.78,0.00016986,2]
[361304804,1747438267103,-3221.9,0.00016986,2]
[361304805,1747438267112,-1247.17,0.00016986,2]
[361304806,1747438267121,-740.99,0.00016986,2]
[361304807,1747438267130,-45792.23926733,0.00016986,2]
[361304808,1747438267671,-16918.25177691,0.00016986,2]
[361304809,1747438267790,-11547.3679479,0.00016986,2]
[361304810,1747438267802,-17393.65579677,0.00016986,2]
[361304811,1747438267813,-22212.49311126,0.00016986,2]
[361304812,1747438267824,-3443.82109286,0.00016986,2]
[361304813,1747438267835,-3971.81551706,0.00016986,2]
[361304814,1747438267847,-4409.74608926,0.00016986,2]
[361304815,1747438267879,-400.0,0.00016712,2]
[361304816,1747438267887,-382.07161444,0.00016712,2]
[361304817,1747438267913,-17.92838556,0.00016712,2]
[361304818,1747438267922,-4341.42344157,0.00016986,2]
[361304819,1747438267933,-3219.85439505,0.00016986,2]
[361304820,1747438325129,151.0,0.00042545,30]
[361304821,1747438328282,200.0,0.00042545,30]
[361304822,1747438328938,207.4,0.00042545,30]
[361304823,1747438329605,215.0738,0.00042545,30]
[361304824,1747438330263,223.0315306,0.00042545,30]
[361304825,1747438331531,231.28369723,0.00042545,30]
[361304826,1747438331684,231.28369723,0.00042545,30]
[361304827,1747438454761,400.0,0.00042545,30]
[361304829,1747438694057,450.0,0.0001,2]
[361304830,1747438852843,16687.2374,0.00042516,60]
[361304831,1747438884297,3276.95484219,0.00042516,60]
[361304832,1747438972394,666.0,0.00027397,120]
[361304833,1747439023111,1529.95231326,0.00042516,120]
[361304834,1747439045802,5135.71542,0.00042516,80]
[361304836,1747439147122,-485.41050409,0.00012,2]
[361304837,1747439244134,-14.58949591,0.00012,2]
[361304838,1747439244156,-200.0,0.00012784,2]
[361304839,1747439244180,-117.90068939,0.000132,2]
[361304841,1747439248076,-82.09931061,0.000132,2]
[361304842,1747439248097,-250.0,0.0001333,2]
[361304843,1747439248118,-474.56700178,0.00013569,2]
[361304844,1747439250100,-4.68299822,0.00013569,2]
[361304845,1747439250121,-372.4,0.00013699,2]
[361304846,1747439250143,-200.0,0.0001405,2]
[361304847,1747439250165,-431.83161,0.00015469,2]
[361304848,1747439250189,-150.0,0.00015516,7]
[361304849,1747439250211,-362.5469471,0.00015547,2]
[361304850,1747439252095,-184.5330529,0.00015547,2]
[361304851,1747439252119,-256.61,0.00015673,2]
[361304852,1747439252148,-1500.0,0.00015798,2]
[361304853,1747439252177,-479.25,0.00015833,2]
[361304854,1747439252200,-1157.59,0.00015978,2]
[361304855,1747439252231,-150.0,0.00016182,2]
[361304856,1747439252260,-1000.0,0.00016182,2]
[361304857,1747439252292,-1200.0,0.00016251,2]
[361304858,1747439252317,-300.0,0.00016251,2]
[361304859,1747439252343,-510.87496653,0.00016252,2]
[361304860,1747439253093,-181.06003347,0.00016252,2]
[361304861,1747439253123,-835.5878848,0.00016253,2]
[361304862,1747439256871,10134.1556207,0.00042516,30]
[361304865,1747439431702,-25849.99,0.00015638,2]
[361304866,1747439431712,-1157.59,0.00015878,2]
[361304867,1747439431724,-185.67025656,0.00016237,2]
[361304868,1747439431737,-300.0,0.00016252,2]
[361304869,1747439431747,-1200.0,0.00016252,2]
[361304870,1747439431757,-550.0,0.00016337,2]
[361304871,1747439431767,-3804.0731,0.00016338,2]
[361304872,1747439431778,-5232.41276796,0.00016338,2]
[361304873,1747439431790,-174.453991,0.00016338,2]
[361304874,1747439431799,-286.98350517,0.00016338,2]
[361304875,1747439431808,-1157.59,0.00016378,2]
[361304876,1747439431818,-7188.44637931,0.00016428,2]
[361304877,1747439431859,-1432.25803849,0.00016428,2]
[361304878,1747439431872,-443.07910095,0.00016428,2]
[361304879,1747439431884,-9798.6108435,0.00016428,2]
[361304883,1747439437547,-475.38,0.00016428,2]
[361304887,1747439437604,-18855.45740725,0.00016428,2]
[361304889,1747439437614,-169.46,0.00016437,2]
[361304891,1747439437623,-5173.39115696,0.00016437,2]
[361304893,1747439437632,-400.0,0.00016438,2]
[361304895,1747439437642,-400.0,0.00016438,2]
[361304897,1747439437651,-400.0,0.00016438,2]
[361304899,1747439437660,-450.0,0.00016438,2]
[361304901,1747439437669,-400.0,0.00016438,2]
[361304903,1747439437679,-400.0,0.00016438,2]
[361304905,1747439437688,-400.0,0.00016438,2]
[361304906,1747439437698,-400.0,0.00016438,2]
[361304907,1747439437707,-629.87,0.00016438,2]
[361304908,1747439437717,-400.0,0.00016438,2]
[361304909,1747439437726,-400.0,0.00016438,2]
[361304910,1747439437735,-400.0,0.00016438,2]
[361304911,1747439437745,-400.0,0.00016438,2]
[361304912,1747439437754,-640.1,0.00016438,2]
[361304913,1747439437763,-450.0,0.00016438,2]
[361304914,1747439437772,-634.33,0.00016438,2]
[361304915,1747439437781,-827.22,0.00016438,2]
[361304916,1747439437790,-1000.0,0.00016438,2]
[361304917,1747439437799,-400.0,0.00016438,2]
[361304918,1747439437809,-400.0,0.00016438,2]
[361304919,1747439437818,-577.83,0.00016438,2]
[361304920,1747439437828,-400.0,0.00016438,2]
[361304921,1747439437837,-400.0,0.00016438,2]
[361304922,1747439437846,-400.0,0.00016438,2]
[361304923,1747439437856,-476.85,0.00016438,2]
[361304924,1747439437865,-641.62,0.00016438,2]
[361304925,1747439437875,-400.0,0.00016438,2]
[361304926,1747439437884,-400.0,0.00016438,2]
[361304927,1747439437894,-400.0,0.00016438,2]
[361304928,1747439437904,-887.09,0.00016438,2]
[361304929,1747439437914,-277.50460889,0.00016438,2]
[361304931,1747439437923,-502.0300311,0.00016438,2]
[361304932,1747439437933,-415.59,0.00016438,2]
[361304934,1747439437942,-400.0,0.00016438,2]
[361304936,1747439437952,-400.0,0.00016438,2]
[361304937,1747439437962,-400.0,0.00016438,2]
[361304938,1747439437971,-400.0,0.00016438,2]
[361304940,1747439437980,-400.0,0.00016438,2]
[361304942,1747439437990,-400.0,0.00016438,2]
[361304944,1747439437999,-400.0,0.00016438,2]
[361304946,1747439438008,-400.0,0.00016438,2]
[361304948,1747439438017,-400.0,0.00016438,2]
[361304950,1747439438027,-862.71,0.00016438,2]
[361304952,1747439438035,-400.0,0.00016438,2]
[361304954,1747439438044,-400.0,0.00016438,2]
[361304956,1747439438053,-798.9,0.00016438,2]
[361304958,1747439438061,-432.09461396,0.00016438,2]
[361304960,1747439438070,-662.08,0.00016438,2]
[361304962,1747439438079,-659.53,0.00016438,2]
[361304964,1747439438088,-416.6,0.00016438,2]
[361304965,1747439438097,-400.0,0.00016438,2]
[361304967,1747439438106,-612.76,0.00016438,2]
[361304969,1747439438115,-500.0,0.00016438,2]
[361304971,1747439438126,-400.0,0.00016438,2]
[361304974,1747439438136,-541.44,0.00016438,2]
[361304975,1747439438145,-400.0,0.00016438,2]
[361304977,1747439438154,-400.0,0.00016438,2]
[361304979,1747439438163,-400.0,0.00016438,2]
[361304981,1747439438172,-714.02,0.00016438,2]
[361304983,1747439438181,-400.0,0.00016438,2]
[361304985,1747439438190,-506.15,0.00016438,2]
[361304987,1747439438199,-400.0,0.00016438,2]
[361304989,1747439438208,-400.0,0.00016438,2]
[361304991,1747439438218,-400.0,0.00016438,2]
[361304993,1747439438226,-400.0,0.00016438,2]
[361304995,1747439438235,-680.72,0.00016438,2]
[361304997,1747439438248,-400.0,0.00016438,2]
[361304999,1747439438257,-616.94,0.00016438,2]
[361305001,1747439438266,-400.0,0.00016438,2]
[361305003,1747439438275,-400.0,0.00016438,2]
[361305005,1747439438284,-440.42,0.00016438,2]
[361305007,1747439438293,-400.0,0.00016438,2]
[361305009,1747439438302,-400.0,0.00016438,2]
[361305011,1747439438311,-400.0,0.00016438,2]
[361305013,1747439438321,-400.0,0.00016438,2]
[361305015,1747439438330,-400.0,0.00016438,2]
[361305017,1747439438339,-589.9,0.00016438,2]
[361305019,1747439438349,-400.0,0.00016438,2]
[361305021,1747439438358,-400.0,0.00016438,2]
[361305023,1747439438367,-500.0,0.00016438,2]
[361305025,1747439438377,-410.87,0.00016438,2]
[361305027,1747439438386,-669.26,0.00016438,2]
[361305029,1747439438395,-554.61,0.00016438,2]
[361305031,1747439438403,-534.74,0.00016438,2]
[361305033,1747439438413,-413.59,0.00016438,2]
[361305035,1747439438421,-400.0,0.00016438,2]
[361305037,1747439438430,-400.0,0.00016438,2]
[361305039,1747439438439,-659.11,0.00016438,2]
[361305041,1747439438448,-400.0,0.00016438,2]
[361305043,1747439438457,-400.0,0.00016438,2]
[361305045,1747439438467,-469.83734832,0.00016438,2]
[361305047,1747439438476,-400.0,0.00016438,2]
[361305049,1747439438485,-400.0,0.00016438,2]
[361305051,1747439438494,-374.34623648,0.00016438,2]
[361305075,1747439438711,-112.96087899,0.00016438,2]
[361305081,1747439438765,-89.62959017,0.00016438,2]
[361305087,1747439438808,-207.23329436,0.00016438,2]
[361305089,1747439438817,-400.0,0.00016438,2]
[361305091,1747439438827,-225.79209405,0.00016438,2]
[361305093,1747439438836,-400.0,0.00016438,2]
[361305095,1747439438845,-400.0,0.00016438,2]
[361305097,1747439438854,-517.78,0.00016438,2]
[361305099,1747439438863,-400.0,0.00016438,2]
[361305100,1747439438874,-500.0,0.00016438,2]
[361305102,1747439438883,-400.0,0.00016438,2]
[361305103,1747439438892,-427.29,0.00016438,2]
[361305104,1747439438902,-591.2470621,0.00016438,2]
[361305105,1747439438913,-277.57103379,0.00016438,2]
[361305106,1747439439043,-71.26190411,0.00016438,2]
[361305107,1747439439052,-400.0,0.00016438,2]
[361305108,1747439439062,-790.45,0.00016438,2]
[361305109,1747439439071,-400.0,0.00016438,2]
[361305110,1747439439080,-400.0,0.00016438,2]
[361305111,1747439439090,-494.66,0.00016438,2]
[361305112,1747439439100,-484.56,0.00016438,2]